Cogmind - Beta 16.1 @@@ ROGUE MODE // 2026.05.02 @ 12:59:03 Player: beans Result: Destroyed by G-67 Veteran with Plasma Rifle Performance ------------- Evolutions (6) 3000 Regions Visited (17) 3400 Robots Destroyed (79) 395 Value Destroyed (2615) 2615 Prototype IDs (42) 840 Alien Tech Used (1) 200 Bonus (1718) 1718 TOTAL SCORE: 12168 Bonus ------- Follower Combat Kills 326 Aligned with FarCom 300 Met Warlord at Base 500 MAIN.C Attacked Warlord 500 Warlord Defense Kills 254 Friendly Fire -162 Cogmind --------- Core Integrity 0/1150 Matter 295/300 Energy 52/100 System Corruption 7% Temperature Cool (0) Movement Core (50) Location -4/Factory Parts ------- > --- POWER (2) -------- (None) > --- PROPULSION (6) --- Combat Antigrav System > --- UTILITY (8) ------ Advanced Heat Sink Spectral Analyzer > --- WEAPON (3) ------- (None) > --- INVENTORY (5) ---- Sensor Drone Bay (20/20) Vortex Shotgun (26) Vortex Driver (23) Enhanced Nova Cannon Field Lobotomy Kit (5) Peak State ------------ > --- POWER ------------ Fission Core Cooled Fission Core > --- PROPULSION ------- Enhanced Biometal Leg Enhanced Biometal Leg Potential Leg Potential Leg Nuclear Pulse Array > --- UTILITY ---------- Advanced Thermal Generator Enhanced Optical Array Experimental Targeting Computer Armor Integrity Analyzer Improved Reaction Control System Authchip [Weapon] Mini Drone Bay Sensor Drone Bay > --- WEAPON ----------- Phase Gun Heavy Autocannon > --- INVENTORY -------- Vortex Shotgun Vortex Driver Vortex Driver Helical Railgun Field Lobotomy Kit [Rating: 134] Favorites ----------- Power Light Angular Momentum Engine Engine Light Angular Momentum Engine Power Core Light Nuclear Core Reactor Reinforced Quantum Reactor Propulsion Potential Leg Treads Biometal Heavy Treads Leg Potential Leg Hover Unit Backup Propulsion III Flight Unit Nuclear Pulse Array Utility Armor Integrity Analyzer Device Sensor Drone Bay Storage Small Storage Unit Processor Armor Integrity Analyzer Hackware Authchip [Weapon] Protection Insulated Plating Weapon Light Assault Rifle Energy Gun Phase Gun Energy Cannon Vortex Driver Ballistic Gun Light Assault Rifle Ballistic Cannon Heavy Autocannon Launcher Rocket Launcher Special Weapon Improved Remote Datajack Slashing Weapon Ripper Special Melee Weapon Advanced Datajack Build | -11 -10 -10 -10 -9 -8 -7 -6 -5 -5 -5 -5 -5 -5 -4 -4 -4 -4 ------- Run | Yrd Mat Min Exi Min Mat Fac Fac Fac Was Fac Upp Upp War Pro Fac Was Fac Slots Evolved 12 | . . . . . 4 2 2 2 . . . . . . 2 . . Power 1 | . . . . . . 1 . . . . . . . . . . . Propulsion 4 | . . . . . 1 . 1 2 . . . . . . . . . Utility 6 | . . . . . 2 1 1 . . . . . . . 2 . . Weapon 1 | . . . . . 1 . . . . . . . . . . . . Parts Attached 101 | 6 2 5 . 1 8 5 15 14 . 2 4 2 16 . 8 11 2 Power 10 | 1 . . . 1 . . 1 1 . . 1 . 3 . . 2 . Engine 2 | 1 . . . . . . . . . . 1 . . . . . . Core 5 | . . . . 1 . . 1 1 . . . . 2 . . . . Reactor 3 | . . . . . . . . . . . . . 1 . . 2 . Propulsion 28 | 2 . 2 . . 1 2 5 6 . 1 . . 6 . 1 2 . Treads 2 | . . . . . . . . 1 . . . . . . . 1 . Leg 12 | 2 . 2 . . 1 2 . 1 . . . . 4 . . . . Wheel . | . . . . . . . . . . . . . . . . . . Hover 3 | . . . . . . . . . . . . . 2 . . 1 . Flight 11 | . . . . . . . 5 4 . 1 . . . . 1 . . Utility 25 | 1 2 1 . . 3 2 4 2 . 1 . . 3 . 3 1 2 Device 12 | . . 1 . . 1 . 3 1 . . . . 1 . 3 . 2 Storage 2 | 1 . . . . 1 . . . . . . . . . . . . Processor 9 | . 2 . . . 1 1 . 1 . 1 . . 2 . . 1 . Hackware 1 | . . . . . . . 1 . . . . . . . . . . Protection 1 | . . . . . . 1 . . . . . . . . . . . Artifact . | . . . . . . . . . . . . . . . . . . Weapon 38 | 2 . 2 . . 4 1 5 5 . . 3 2 4 . 4 6 . Energy Gun 4 | . . . . . . . . 1 . . 1 . 1 . 1 . . Energy Cannon 5 | . . . . . . . . . . . . . 2 . 1 2 . Ballistic Gun 17 | 2 . . . . 3 1 2 3 . . 1 2 . . . 3 . Ballistic Cannon 4 | . . 1 . . . . 1 . . . . . 1 . . 1 . Launcher 2 | . . 1 . . 1 . . . . . . . . . . . . Special Weapon 4 | . . . . . . . 2 1 . . . . . . 1 . . Impact Weapon . | . . . . . . . . . . . . . . . . . . Slashing Weapon 1 | . . . . . . . . . . . 1 . . . . . . Piercing Weapon . | . . . . . . . . . . . . . . . . . . Special Melee Weapon 1 | . . . . . . . . . . . . . . . 1 . . Unidentified Prototypes 17 | . . 1 . . 1 1 . . . . . . 11 1 1 1 . Parts Lost 53 | . . 5 . . 1 10 10 8 . 1 . 1 . . 12 1 4 Power 6 | . . 1 . . . 1 1 1 . . . . . . 1 . 1 Propulsion 21 | . . 1 . . 1 3 5 4 . . . . . . 4 1 2 Utility 10 | . . 1 . . . 2 1 2 . . . . . . 3 . 1 Weapon 16 | . . 2 . . . 4 3 1 . 1 . 1 . . 4 . . Highest Loss Streak 8 | . . 2 . . 1 8 4 4 . 1 . 1 . . 5 1 3 To Critical Strikes 1 | . . . . . . . . . . . . . . . 1 . . Average Backups 4 | . . 4 5 4 6 7 5 4 5 5 4 5 4 5 4 4 4 Power . | . . . . . . . . . . . . . . . . . . Propulsion 1 | . . 1 1 2 2 2 2 2 2 2 2 2 1 . . . . Utility 1 | . . 2 1 1 1 3 1 . 1 1 . 1 . . . 1 1 Weapon 1 | . . . 1 . . . . . . 1 1 1 1 4 3 2 2 Tool/Special . | . . . . . . . . . . . . . . . . . . Unused Backups 6 | . . . 1 . 2 1 1 . . . . . . . 1 . . Power 1 | . . . . . 1 . . . . . . . . . . . . Propulsion 1 | . . . 1 . . . . . . . . . . . . . . Utility 3 | . . . . . 1 1 1 . . . . . . . . . . Weapon 1 | . . . . . . . . . . . . . . . 1 . . Tool/Special . | . . . . . . . . . . . . . . . . . . Average Slot Usage (%) 62 | . 98 74 50 93 74 78 40 45 41 40 54 59 68 78 70 30 46 Engine 2 | . 14 4 . . . . . . . . 4 5 7 . . 2 3 Core 2 | . . . . 9 9 6 1 . . . . . 1 11 7 . . Leg 10 | . 28 20 28 28 13 15 2 . . . . . 6 23 18 . . Flight 5 | . . . . . . . 6 8 11 11 17 17 13 5 2 . . Device 5 | . . 8 14 14 7 6 4 4 . . 2 . 1 5 13 . 7 Storage 2 | . 5 . 6 14 15 12 2 . . . . . . . . . . Processor 13 | . 21 13 . . 6 12 13 16 17 16 17 17 20 19 15 10 9 Hackware 2 | . . . . . . . 2 5 5 5 5 5 5 5 4 . . Ballistic Gun 8 | . 27 21 . 14 19 21 1 2 5 4 . 10 5 . . 6 2 Ballistic Cannon 1 | . . 3 . 13 3 . 1 . . . . . . 5 3 . 1 Peak Build Rating 134 | 6 7 24 24 31 34 39 38 63 48 43 62 66 118 117 134 58 77 Average Rating 48 | 3 6 12 19 30 30 35 24 38 42 41 55 58 77 111 106 36 61 On Entrance 39 | . 6 7 24 22 31 34 18 22 48 42 43 62 58 117 109 13 58 Avg Prop Armor Cover (%) 8 | . . . . . . . 20 4 . . . . 6 3 6 40 16 Naked Turns . | . . . . . . . . . . . . . . . . . . Heaviest Build 94 | 12 12 24 24 34 36 22 22 12 10 5 26 21 73 73 94 52 53 Greatest Support 120 | 20 20 40 40 40 40 40 15 23 19 25 25 25 120 120 120 75 32 Greatest Overweight (x) 10 | 2 . 1 . . 1 2 2 2 . . 1 . 10 . 4 5 3 Average Overweight (x) . | . . . . . . . . . . . . . . . . . 1 Largest Inventory Capacity 8 | 8 8 5 8 8 8 8 8 5 5 5 5 5 5 5 5 5 5 Average Capacity 5 | 7 6 5 6 8 8 8 6 5 5 5 5 5 5 5 5 5 5 Most Carried 8 | 3 2 5 6 5 8 8 6 5 5 5 5 5 5 5 5 5 5 Average Carried 4 | . . 4 5 4 6 7 5 4 5 5 4 5 4 5 4 4 4 Final Capacity 8 | 8 5 5 8 8 8 8 5 5 5 5 5 5 5 5 5 5 5 Final Carried 8 | . 2 4 6 4 8 6 5 5 5 5 5 5 5 5 5 5 5 Class Distribution -------------------- 71% | Mutant 10% | Gunner 6% | Scavenger-Skirmisher 4% | Scavenger-Mutant 3% | Skirmisher Dominant Class ---------------- Mutant | -10/Materials Mutant | -10/Mines Mutant | -10/Exiles Mutant | -9/Mines Skirmisher | -8/Materials Scavenger-Skirmisher | -7/Factory Mutant | -6/Factory Mutant | -5/Factory Mutant | -5/Waste Mutant | -5/Factory Mutant | -5/Upper Caves Mutant | -5/Upper Caves Mutant | -5/Warlord Mutant | -4/Proximity Caves Gunner | -4/Factory Mutant | -4/Waste Mutant | -4/Factory Resources | -11 -10 -10 -10 -9 -8 -7 -6 -5 -5 -5 -5 -5 -5 -4 -4 -4 -4 ----------- Run | Yrd Mat Min Exi Min Mat Fac Fac Fac Was Fac Upp Upp War Pro Fac Was Fac Matter Collected 3832 | 230 117 313 . 44 698 354 290 150 . 82 325 65 353 147 324 278 62 Remotely . | . . . . . . . . . . . . . . . . . . Salvage Created 4269 | . 185 166 . 75 808 652 206 231 . . 234 90 84 124 178 1106 130 Parts 140 | . 15 5 . 4 49 31 6 8 . . 4 2 1 2 4 4 5 Haulers Intercepted 7 | . 2 . . . 2 1 1 1 . . . . . . . . . Recyclers Shooed 8 | . 1 . . . . . 2 2 . . . . . . . . 3 Parts Field Recycled . | . . . . . . . . . . . . . . . . . . Retrieved Matter . | . . . . . . . . . . . . . . . . . . Parts Self-Destructed 4 | . . . . . . . . . . . 1 1 . 2 . . . Prevented . | . . . . . . . . . . . . . . . . . . Parts Restored . | . . . . . . . . . . . . . . . . . . Kills | -11 -10 -10 -10 -9 -8 -7 -6 -5 -5 -5 -5 -5 -5 -4 -4 -4 -4 ------- Run | Yrd Mat Min Exi Min Mat Fac Fac Fac Was Fac Upp Upp War Pro Fac Was Fac Combat Hostiles Destroyed 67 | . 3 12 . 2 12 10 5 5 . . . 1 2 5 3 5 2 Guns 40 | . 3 4 . 2 10 10 2 4 . . . 1 . . 1 3 . Cannons 18 | . . . . . 2 . 3 1 . . . . 2 5 2 2 1 AOE 8 | . . 8 . . . . . . . . . . . . . . . Classes Destroyed 18 | . 5 3 . . 4 2 . . . . . . . 2 . 1 1 Worker 4 | . . . . . 4 . . . . . . . . . . . . Builder 1 | . . 1 . . . . . . . . . . . . . . . Tunneler 2 | . 1 . . . . 1 . . . . . . . . . . . Hauler 7 | . 2 . . . 2 1 1 1 . . . . . . . . . Recycler 5 | . . 1 . . 3 1 . . . . . . . . . . . Operator 1 | . . . . . 1 . . . . . . . . . . . . Drone 2 | . . . . . . . . . . . . . . 2 . . . Watcher 3 | . 1 . . . 1 . . . . . . . . . 1 . . Swarmer 13 | . 2 1 . . 3 . 3 4 . . . . . . . . . Grunt 20 | . 1 . . 2 5 8 2 . . . . . 1 . . . 1 Brawler 1 | . . . . . . 1 . . . . . . . . . . . Duelist 1 | . . . . . . 1 . . . . . . . . . . . Sentry 7 | . . . . . 3 . . 1 . . . 1 . 1 1 . . Demolisher 1 | . . . . . . . . . . . . . . . . . 1 Hunter 2 | . . . . . 1 . . . . . . . 1 . . . . Programmer 4 | . . . . . . . . . . . . . . 2 2 . . Compactor 5 | . . . . . . . . . . . . . . . . 5 . Assembled 11 | . . 11 . . . . . . . . . . . . . . . Best Kill Streak 6 | . 2 4 . 2 6 5 2 3 . . . 1 2 2 1 2 1 Combat Bots Only 5 | . 2 4 . 2 3 5 2 3 . . . 1 2 2 1 2 1 Max Kills in Single Turn 3 | . 1 3 . 1 3 2 1 1 . . . 1 1 1 1 1 1 Gunslinging 1 | . . . . . 1 . . . . . . . . . . . . Exploded 3 | . . 3 . . . . . . . . . . . . . . . Melee . | . . . . . . . . . . . . . . . . . . Uniques/NPCs Destroyed . | . . . . . . . . . . . . . . . . . . Combat | -11 -10 -10 -10 -9 -8 -7 -6 -5 -5 -5 -5 -5 -5 -4 -4 -4 -4 -------- Run | Yrd Mat Min Exi Min Mat Fac Fac Fac Was Fac Upp Upp War Pro Fac Was Fac Hostile Shots Fired 829 | . 37 28 . 26 51 133 127 102 . 18 . 17 12 10 224 1 43 Missed 316 | . 13 8 . 9 17 60 39 29 . 7 . 5 4 2 111 . 12 Hits 513 | . 24 20 . 17 34 73 88 73 . 11 . 12 8 8 113 1 31 Melee 8 | . . 5 . . . 2 . . . . . . . . . 1 . Projectile 505 | . 24 15 . 17 34 71 88 73 . 11 . 12 8 8 113 . 31 AOE 7 | . . . . . . . 1 . . . . . . . 3 . 3 Critical Strikes 19 | . . . . . 1 2 3 1 . 1 . 1 . . 8 1 1 Damage Taken 9468 | . 204 397 . 219 483 863 1621 1252 . 223 124 286 234 170 2477 120 795 Core 3159 | . 59 112 . 12 71 135 794 420 . 63 124 126 72 19 750 66 336 Absorbed by Shields . | . . . . . . . . . . . . . . . . . . Regen/Repaired (Parts) 286 | . . . . . . . . . . . . . 10 . . 189 87 Core Remaining (%) 52 | 100 . . . 26 87 80 6 . . . . . . 17 . . . Volleys Fired 385 | . 42 38 . 12 49 32 39 50 . . . 5 9 13 45 27 24 Largest 3 | . 2 2 . 2 3 3 2 2 . . . 3 1 1 2 3 1 Hottest 164 | . 40 68 . 68 78 78 77 81 . . . 149 100 76 164 120 120 Shots Fired 598 | . 84 54 . 23 112 79 50 60 . . . 12 9 14 45 32 24 Gun 432 | . 84 36 . 12 89 74 23 57 . . . 12 . . 23 22 . Cannon 148 | . . 2 . 11 23 5 27 3 . . . . 9 14 20 10 24 Launcher 16 | . . 16 . . . . . . . . . . . . . . . Special 2 | . . . . . . . . . . . . . . . 2 . . Kinetic 481 | . 84 38 . 23 112 79 50 44 . . . 7 8 14 16 6 . Thermal 74 | . . . . . . . . 16 . . . 5 . . 27 2 24 Explosive 16 | . . 16 . . . . . . . . . . . . . . . Electromagnetic . | . . . . . . . . . . . . . . . . . . Entropic 25 | . . . . . . . . . . . . . 1 . . 24 . Robot Hit Streak 13 | . 6 4 . 4 3 8 7 10 . . . 13 8 8 4 6 4 Robot Miss Streak 10 | . 8 10 . 4 6 5 7 5 . . . 1 1 1 3 2 4 Penetration Max 1 | . . . . . 1 1 . . . . . . . . . 1 . Secondary Targets 3 | . . . . . 2 1 . . . . . . . . . . . Max Gunslinging Chain 1 | . . . . . 1 1 . . . . . . . . . . . Capacitor 24 | . . . . . . . . . . . . . . . . . 24 Shots Hit Robots 338 | . 41 17 . 11 53 48 38 40 . . 5 10 5 9 22 25 14 Core Hits 199 | . 14 27 . 6 38 23 33 19 . . 4 4 3 4 8 14 2 Critical Kills 6 | . . . . . 3 1 1 . . . . . . . . . 1 Critical Parts Destroyed 11 | . . . . 2 2 2 1 1 . . . . . . . 3 . Critical Strikes 24 | . . . . 2 5 3 2 1 . . . 1 1 2 2 4 1 Burn 3 | . . . . . . . . . . . . 1 . . 2 . . Meltdown 1 | . . . . . . . . . . . . . . . . . 1 Destroy 13 | . . . . 2 5 3 2 1 . . . . . . . . . Blast 3 | . . . . . . . . . . . . . 1 2 . . . Detonate 3 | . . . . . . . . . . . . . . . . 3 . Sunder 1 | . . . . . . . . . . . . . . . . 1 . Melee Attacks 7 | . . . . . . . . . . . 5 2 . . . . . Impact . | . . . . . . . . . . . . . . . . . . Slashing 7 | . . . . . . . . . . . 5 2 . . . . . Piercing . | . . . . . . . . . . . . . . . . . . Sneak Attacks . | . . . . . . . . . . . . . . . . . . Combat Hostiles . | . . . . . . . . . . . . . . . . . . Follow-up Attacks . | . . . . . . . . . . . . . . . . . . Damage Inflicted 10278 | . 352 560 . 136 1007 1016 752 921 . . 373 186 427 795 1106 1972 675 Guns 4946 | . 352 116 . 66 833 962 152 848 . . . 186 . . 334 1097 . Cannons 4079 | . . . . 70 174 54 579 66 . . . . 427 795 593 646 675 Explosions 673 | . . 444 . . . . . . . . . . . . . 229 . Melee 373 | . . . . . . . . . . . 373 . . . . . . Ramming 207 | . . . . . . . 21 7 . . . . . . 179 . . Kinetic 5808 | . 352 116 . 136 1007 1016 731 624 . . . 114 427 795 490 . . Thermal 1788 | . . . . . . . . 290 . . . 72 . . 437 314 675 Explosive 444 | . . 444 . . . . . . . . . . . . . . . Electromagnetic . | . . . . . . . . . . . . . . . . . . Impact . | . . . . . . . . . . . . . . . . . . Slashing 373 | . . . . . . . . . . . 373 . . . . . . Piercing . | . . . . . . . . . . . . . . . . . . Entropic 1658 | . . . . . . . . . . . . . . . . 1658 . Highest Corruption 17 | . . 6 6 6 . 5 1 . 14 14 15 15 17 1 7 7 7 Average Corruption 6 | . . 5 6 6 . 5 1 . 9 14 14 15 16 1 3 7 7 Corruption Purged . | . . . . . . . . . . . . . . . . . . Corruption Blocked . | . . . . . . . . . . . . . . . . . . Effects 108 | . . 14 8 6 . 4 3 . 3 7 15 4 1 4 9 14 16 Message Errors 32 | . . 6 4 1 . 1 1 . 1 1 3 2 . 2 2 4 4 Matter Fused 24 | . . 3 2 1 . 1 1 . . 1 6 2 1 1 2 2 1 Heat Flow Errors 9 | . . 2 2 1 . . . . . . . . . . 1 2 1 Energy Discharges 10 | . . 1 . 1 . . . . . 1 2 . . . 2 2 1 Parts Rejected 3 | . . . . . . 1 . . . . . . . . 1 . 1 Parts Fused 2 | . . . . . . . . . 1 1 . . . . . . . Data Loss (minor) 15 | . . 1 . 1 . . . . 1 3 2 . . . . 2 5 Data Loss (major) 4 | . . . . . . . . . . . 2 . . . . 1 1 Misfires 3 | . . . . . . . . . . . . . . 1 . 1 1 Alerts 1 | . . 1 . . . . . . . . . . . . . . . Weapon Failures 5 | . . . . 1 . 1 1 . . . . . . . 1 . 1 Overload Shots . | . . . . . . . . . . . . . . . . . . Overflow Damage 329 | . . 30 . . 2 . . . . . 72 . 17 121 47 15 25 Projectiles 199 | . . . . . 2 . . . . . . . 17 121 34 . 25 Explosions 45 | . . 30 . . . . . . . . . . . . . 15 . Melee 85 | . . . . . . . . . . . 72 . . . 13 . . Knockbacks 15 | . . . . 2 1 2 1 2 . . . . 4 2 1 . . Impact . | . . . . . . . . . . . . . . . . . . Kinetic 11 | . . . . 2 1 2 1 1 . . . . 2 1 1 . . Secondary 4 | . . . . . . . . 1 . . . . 2 1 . . . Self-Inflicted Damage 147 | . . 64 . . . . 10 . . . . . . . . 73 . Shots 4 | . . 2 . . . . . . . . . . . . . 2 . Rammed 7 | . . . . . . . 7 . . . . . . . . . . Targets Rammed 25 | . . . . . . . 7 8 . . . . . . 10 . . Kicked 18 | . . . . . . . . 8 . . . . . . 10 . . Crushed . | . . . . . . . . . . . . . . . . . . Highest Temperature 457 | . 9 215 215 133 457 120 97 86 . . . 267 54 98 354 174 324 Average Temperature 71 | . 6 89 93 54 61 53 52 28 . . . 115 21 35 89 43 138 Received Heat Transfer 1832 | . 15 . . 123 180 333 345 27 . 72 . 63 9 18 460 . 187 Effects 4 | . . . . . 1 . . . . . . . . . 1 . 2 Shutdowns 1 | . . . . . 1 . . . . . . . . . . . . Energy Bleed 1 | . . . . . . . . . . . . . . . 1 . . Interference 2 | . . . . . . . . . . . . . . . . . 2 Siege Activations . | . . . . . . . . . . . . . . . . . . Martial Activations . | . . . . . . . . . . . . . . . . . . Shielding Activations . | . . . . . . . . . . . . . . . . . . Robots Disrupted . | . . . . . . . . . . . . . . . . . . Combat Hostiles . | . . . . . . . . . . . . . . . . . . Robots Corrupted . | . . . . . . . . . . . . . . . . . . Combat Hostiles . | . . . . . . . . . . . . . . . . . . Parts Fried . | . . . . . . . . . . . . . . . . . . Impact Corruptions 1 | . . . . . . . . . . . . . . . 1 . . Robots Melted 1 | . . . . . . . . . . . . . . . . . 1 Combat Hostiles 1 | . . . . . . . . . . . . . . . . . 1 Parts Melted 7 | . . . . . . . . 1 . . . . . . 3 . 3 Heat Transferred 2000 | . . . . . . . . 444 . . . 185 . . 555 224 592 Parts Sabotaged . | . . . . . . . . . . . . . . . . . . Parts Stolen . | . . . . . . . . . . . . . . . . . . Parts Stripped . | . . . . . . . . . . . . . . . . . . Power Chain Reactions . | . . . . . . . . . . . . . . . . . . Alert | -11 -10 -10 -10 -9 -8 -7 -6 -5 -5 -5 -5 -5 -5 -4 -4 -4 -4 ------- Run | Yrd Mat Min Exi Min Mat Fac Fac Fac Was Fac Upp Upp War Pro Fac Was Fac Maximum Alert Level 1 | . . . . . . . . . . . . . . . 1 . 1 Low Security (%) 95 | 100 100 100 . 100 100 100 100 100 100 100 . . . . 70 100 94 Level 1 4 | . . . . . . . . . . . . . . . 29 . 5 Level 2 . | . . . . . . . . . . . . . . . . . . Level 3 . | . . . . . . . . . . . . . . . . . . Level 4 . | . . . . . . . . . . . . . . . . . . Level 5 . | . . . . . . . . . . . . . . . . . . High Security . | . . . . . . . . . . . . . . . . . . Max Security . | . . . . . . . . . . . . . . . . . . Peak Influence 322 | . 40 32 . 51 174 135 54 40 . 25 . . . . 322 14 203 Initial 300 | . . 1 . . . 72 31 . . . . . . . 300 1 . Average 43 | . 10 3 . 20 91 49 6 6 . 5 . . . . 147 . 95 Influence Increases 2760 | . 96 136 . 54 486 269 192 126 . 45 10 65 40 80 587 50 524 Destroy 0b10 Robot/C 1100 | . 60 20 . 40 240 200 100 100 . . . 20 40 60 60 . 160 Destroy 0b10 Robot/NC 155 | . 20 10 . . 55 15 5 5 . . 10 . . 10 5 . 20 Destroy Leader 254 | . 16 10 . 10 66 42 12 12 . . . . . 10 22 . 54 Allied During Kill 176 | . . . . . . . . . . . . . . . . . 176 Successful Hack 21 | . . . . . . 12 . 9 . . . . . . . . . Disable Machine 90 | . . . . . 60 . . . . . . . . . 15 . 15 Destroy Structure 274 | . . 96 . 4 20 . . . . . . . . . 20 50 84 Advance Influence 300 | . . . . . . . . . . . . . . . 300 . . Partial Spotted 15 | . . . . . . . . . . 15 . . . . . . . Lose Combat Pursuer 375 | . . . . . 45 . 75 . . 30 . 45 . . 165 . 15 Influence Decreases 2688 | . 91 127 14 53 327 364 257 126 . 45 10 40 37 108 582 55 452 Entered New Map 198 | . . 4 14 . 1 88 34 . . . . . 25 28 . 4 . Time Decay 1781 | . 91 93 . 53 316 176 163 116 . 40 10 40 12 80 362 41 188 Search Patrol Dispatched 100 | . . . . . . . . . . . . . . . 100 . . Lost Part 385 | . . 30 . . 10 100 60 10 . 5 . . . . 120 10 40 Lost Ally 224 | . . . . . . . . . . . . . . . . . 224 Squads Dispatched 22 | . . . . . . 5 6 2 . 1 . . . . 3 . 5 Investigation 2 | . . . . . . 1 1 . . . . . . . . . . Extermination 5 | . . . . . . . 1 1 . . . . . . 2 . 1 Reinforcement 11 | . . . . . . 2 2 1 . 1 . . . . 1 . 4 Assault . | . . . . . . . . . . . . . . . . . . Garrison 4 | . . . . . . 2 2 . . . . . . . . . . Intercept . | . . . . . . . . . . . . . . . . . . Searches Triggered 1 | . . . . . . . . . . . . . . . 1 . . Construction Impeded 3 | . . . . . . 1 . . . . . . . . . . 2 Haulers Reinforced 3 | . . . . . . . . 1 . . . . . . 1 . 1 Active Scanning Responses . | . . . . . . . . . . . . . . . . . . Cargo Convoy Interrupts . | . . . . . . . . . . . . . . . . . . Stealth | -11 -10 -10 -10 -9 -8 -7 -6 -5 -5 -5 -5 -5 -5 -4 -4 -4 -4 --------- Run | Yrd Mat Min Exi Min Mat Fac Fac Fac Was Fac Upp Upp War Pro Fac Was Fac Distress Signals 12 | . . 1 . . 4 1 2 . . 1 . . . . 1 . 2 Communications Jammed . | . . . . . . . . . . . . . . . . . . Distress Signals . | . . . . . . . . . . . . . . . . . . Times Spotted 209 | . 8 11 . 2 14 15 25 14 6 13 . 4 25 6 28 8 30 Peak Tracking Total 18 | . 3 3 . 2 5 4 9 6 6 7 . 3 11 2 9 4 18 Tactical Retreats 16 | . . . . . 3 . 3 . . 2 . 1 . . 4 2 1 Traps | -11 -10 -10 -10 -9 -8 -7 -6 -5 -5 -5 -5 -5 -5 -4 -4 -4 -4 ------- Run | Yrd Mat Min Exi Min Mat Fac Fac Fac Was Fac Upp Upp War Pro Fac Was Fac Traps Triggered 9 | . 1 . . . . 1 1 2 . . 1 . 1 . 2 . . Indirectly . | . . . . . . . . . . . . . . . . . . Trap Hack Attempts . | . . . . . . . . . . . . . . . . . . Triggered . | . . . . . . . . . . . . . . . . . . Disarmed . | . . . . . . . . . . . . . . . . . . Reprogrammed . | . . . . . . . . . . . . . . . . . . Reused . | . . . . . . . . . . . . . . . . . . Traps Extracted . | . . . . . . . . . . . . . . . . . . Installed . | . . . . . . . . . . . . . . . . . . Triggered . | . . . . . . . . . . . . . . . . . . Machines | -11 -10 -10 -10 -9 -8 -7 -6 -5 -5 -5 -5 -5 -5 -4 -4 -4 -4 ---------- Run | Yrd Mat Min Exi Min Mat Fac Fac Fac Was Fac Upp Upp War Pro Fac Was Fac Machines Disabled 8 | . . . . . 4 . . . . . . . 1 1 1 . 1 Max in Single Turn 1 | . . . . . 1 . . . . . . . 1 1 1 . . Machines Repaired . | . . . . . . . . . . . . . . . . . . Machines Dismantled . | . . . . . . . . . . . . . . . . . . Machines Sabotaged . | . . . . . . . . . . . . . . . . . . Overloaded Fab Kills . | . . . . . . . . . . . . . . . . . . Hacking | -11 -10 -10 -10 -9 -8 -7 -6 -5 -5 -5 -5 -5 -5 -4 -4 -4 -4 --------- Run | Yrd Mat Min Exi Min Mat Fac Fac Fac Was Fac Upp Upp War Pro Fac Was Fac Machines Accessed 14 | . . 1 1 . 1 2 1 2 . 3 . . 1 1 1 . . Terminals 4 | . . . . . 1 1 . 1 . . . . . . 1 . . Fabricators 4 | . . . . . . . 1 1 . 2 . . . . . . . Repair Stations . | . . . . . . . . . . . . . . . . . . Recycling Units 1 | . . . . . . . . . . 1 . . . . . . . Scanalyzers . | . . . . . . . . . . . . . . . . . . Garrison Access 1 | . . . . . . 1 . . . . . . . . . . . Total Hacks 23 | . . 1 1 . 1 7 1 4 . 5 . . 1 1 1 . . Successful 14 | . . 1 1 . . 2 1 3 . 3 . . 1 1 1 . . Failed 9 | . . . . . 1 5 . 1 . 2 . . . . . . . Catastrophic 1 | . . . . . . . . . . 1 . . . . . . . Database Lockouts . | . . . . . . . . . . . . . . . . . . Manual 5 | . . . 1 . 1 3 . . . . . . . . . . . Terminals 9 | . . . . . 1 4 . 3 . . . . . . 1 . . Fabricators 4 | . . . . . . . 1 1 . 2 . . . . . . . Repair Stations . | . . . . . . . . . . . . . . . . . . Recycling Units 3 | . . . . . . . . . . 3 . . . . . . . Scanalyzers . | . . . . . . . . . . . . . . . . . . Garrison Access 3 | . . . . . . 3 . . . . . . . . . . . Terminal Hacks 8 | . . 1 1 . . 1 . 2 . . . . 1 1 1 . . Record 1 | . . . . . . . . . . . . . . 1 . . . Prototype ID Bank 2 | . . . . . . 1 . 1 . . . . . . . . . Open Door 2 | . . 1 . . . . . . . . . . 1 . . . . Dispatch Records 1 | . . . . . . . . 1 . . . . . . . . . Zone Layout 1 | . . . . . . . . . . . . . . . 1 . . Proto ID Catalog 1 | . . . 1 . . . . . . . . . . . . . . Fabricator Hacks 3 | . . . . . . . 1 1 . 1 . . . . . . . Network Status 2 | . . . . . . . 1 . . 1 . . . . . . . Build 1 | . . . . . . . . 1 . . . . . . . . . Repair Station Hacks . | . . . . . . . . . . . . . . . . . . Recycling Unit Hacks 2 | . . . . . . . . . . 2 . . . . . . . Process 1 | . . . . . . . . . . 1 . . . . . . . Retrieve Matter 1 | . . . . . . . . . . 1 . . . . . . . Scanalyzer . | . . . . . . . . . . . . . . . . . . Garrison Access Hacks . | . . . . . . . . . . . . . . . . . . Unauthorized Hacks 1 | . . . . . . 1 . . . . . . . . . . . Terminals . | . . . . . . . . . . . . . . . . . . Fabricators . | . . . . . . . . . . . . . . . . . . Repair Stations . | . . . . . . . . . . . . . . . . . . Recycling Units . | . . . . . . . . . . . . . . . . . . Scanalyzers . | . . . . . . . . . . . . . . . . . . Garrison Access 1 | . . . . . . 1 . . . . . . . . . . . Decoy 1 | . . . . . . 1 . . . . . . . . . . . Data Cores Recovered 1 | . . . . . . . . . . . . . . . . . 1 Used . | . . . . . . . . . . . . . . . . . . Hacking Detections 5 | . . . . . 1 2 . 1 . 1 . . . . . . . Full Trace Events 1 | . . . . . . 1 . . . . . . . . . . . Feedback Events . | . . . . . . . . . . . . . . . . . . Feedback Blocked . | . . . . . . . . . . . . . . . . . . Robot Schematics Acquired . | . . . . . . . . . . . . . . . . . . Robots Built . | . . . . . . . . . . . . . . . . . . Authchips . | . . . . . . . . . . . . . . . . . . Time . | . . . . . . . . . . . . . . . . . . Total Robot Build Rating . | . . . . . . . . . . . . . . . . . . Part Schematics Acquired . | . . . . . . . . . . . . . . . . . . Parts Built 2 | . . . . . . . . 2 . . . . . . . . . Authchips . | . . . . . . . . . . . . . . . . . . Time 106 | . . . . . . . . 106 . . . . . . . . . Total Part Build Rating 12 | . . . . . . . . 12 . . . . . . . . . Part Studies Acquired . | . . . . . . . . . . . . . . . . . . Parts Repaired . | . . . . . . . . . . . . . . . . . . Time . | . . . . . . . . . . . . . . . . . . Parts Recycled . | . . . . . . . . . . . . . . . . . . Recycled Matter . | . . . . . . . . . . . . . . . . . . Retrieved Matter . | . . . . . . . . . . . . . . . . . . Retrieved Components . | . . . . . . . . . . . . . . . . . . Parts Scanalyzed . | . . . . . . . . . . . . . . . . . . Part Schematics Acquired . | . . . . . . . . . . . . . . . . . . Parts Damaged . | . . . . . . . . . . . . . . . . . . Bothacking | -11 -10 -10 -10 -9 -8 -7 -6 -5 -5 -5 -5 -5 -5 -4 -4 -4 -4 ------------ Run | Yrd Mat Min Exi Min Mat Fac Fac Fac Was Fac Upp Upp War Pro Fac Was Fac Used RIF Installer . | . . . . . . . . . . . . . . . . . . Robots Hacked 2 | . . . . . . . . . . . . . . . 2 . . Non-combat 2 | . . . . . . . . . . . . . . . 2 . . Combat . | . . . . . . . . . . . . . . . . . . Robot Hacks Applied 2 | . . . . . . . . . . . . . . . 2 . . parse_system 1 | . . . . . . . . . . . . . . . 1 . . find_chute 1 | . . . . . . . . . . . . . . . 1 . . Relay Couplers Released . | . . . . . . . . . . . . . . . . . . Fabnet Peak Effective % . | . . . . . . . . . . . . . . . . . . Robots Rewired . | . . . . . . . . . . . . . . . . . . Allies Hacked . | . . . . . . . . . . . . . . . . . . Hacks Repelled . | . . . . . . . . . . . . . . . . . . Allies | -11 -10 -10 -10 -9 -8 -7 -6 -5 -5 -5 -5 -5 -5 -4 -4 -4 -4 -------- Run | Yrd Mat Min Exi Min Mat Fac Fac Fac Was Fac Upp Upp War Pro Fac Was Fac Total Allies 18 | . . . . . . . . . . . . . . . . 18 . Largest Group 18 | . . . . . . . . . . . . . . . . 18 18 Highest-Rated Group 638 | . . . . . . . . . . . . . . . . 638 637 Highest-Rated Ally 50 | . . . . . . . . . . . . . . . . 50 50 Total Orders 21 | . . . . 2 1 . 8 2 . . 1 . 1 1 5 . . STAY 5 | . . . . . . . 4 1 . . . . . . . . . FOLLOW 2 | . . . . 1 . . 1 . . . . . . . . . . EXPLORE 2 | . . . . 1 . . . . . . . . . . 1 . . RETURN 12 | . . . . . 1 . 3 1 . . 1 . 1 1 4 . . Ally Attacks 87 | . . . . . . . . . . . . . . . . 2 85 Total Damage 2028 | . . . . . . . . . . . . . . . . 32 1996 Kills 11 | . . . . . . . . . . . . . . . . 1 10 Allies Corrupted . | . . . . . . . . . . . . . . . . . . Allies Melted . | . . . . . . . . . . . . . . . . . . Intel | -11 -10 -10 -10 -9 -8 -7 -6 -5 -5 -5 -5 -5 -5 -4 -4 -4 -4 ------- Run | Yrd Mat Min Exi Min Mat Fac Fac Fac Was Fac Upp Upp War Pro Fac Was Fac Active Infowar (turns) 6816 | . 191 605 . . 575 365 234 607 117 192 310 138 1284 413 838 572 375 Optics 4832 | . . . . . . . . 593 117 192 310 138 1284 413 838 572 375 Sensors 1405 | . . . . . 575 365 234 231 . . . . . . . . . T.N.C. 796 | . 191 605 . . . . . . . . . . . . . . . Robot Analysis Total . | . . . . . . . . . . . . . . . . . . Derelict Logs Recovered 5 | . . 2 . . . . . . . . 2 . . 1 . . . Drone Launches 13 | . . 1 . 1 . . 3 1 . . 1 . 1 2 3 . . Drone Recoveries 13 | . . . . 1 1 . 3 1 . . 1 . 1 1 4 . . Exploration | -11 -10 -10 -10 -9 -8 -7 -6 -5 -5 -5 -5 -5 -5 -4 -4 -4 -4 ------------- Run | Yrd Mat Min Exi Min Mat Fac Fac Fac Was Fac Upp Upp War Pro Fac Was Fac Turns Passed 8892 | 67 314 1028 350 133 812 380 920 607 117 192 310 138 1284 413 838 572 417 Spaces Moved 7349 | 60 160 629 268 34 372 213 753 460 204 466 434 295 1168 364 710 521 238 Core 607 | 39 . . . . . . 168 2 . . . . 2 . 4 350 42 Treads 44 | . . . . . . . . 42 . . . . . . . 2 . Legs 3257 | 21 160 629 268 34 372 213 157 41 . . . . 346 364 652 . . Wheels . | . . . . . . . . . . . . . . . . . . Hover 366 | . . . . . . . . . . . . . 1 . . 169 196 Flight 3075 | . . . . . . . 428 375 204 466 434 295 819 . 54 . . Fastest Speed 29 | 50 120 120 120 120 120 120 29 32 37 34 34 34 34 95 45 50 50 Average Speed 88 | 92 120 138 120 120 144 121 84 63 37 36 56 34 83 95 88 77 149 Slowest Speed 550 | 150 120 190 120 120 190 260 195 195 37 37 114 34 550 95 250 300 316 Overloaded Moves 100 | . . . . . . . . . . . . . 47 . 53 . . Propulsion Burnouts . | . . . . . . . . . . . . . . . . . . Robots Hopped 12 | . . . . . . . 6 . . 4 . . . . 2 . . Potential Cave-ins 2 | . . . . . . . . . . . . . . . . 2 . Cave-ins Triggered . | . . . . . . . . . . . . . . . . . . Exploration Rate (%) 44 | 4 41 91 63 16 37 9 25 17 85 20 59 52 93 55 22 95 8 Regions Visited 17 Branch Regions 7 Pre-discovered Areas 2 | . . 1 . . . . . . . . . . . 1 . . . Known Exits Taken 10 | . 1 1 . 1 1 1 1 . . 1 1 1 . 1 . . . Unknown Exits Taken 3 | 1 . . 1 . . . . . . . . . 1 . . . . Scrap Searched 6 | . . 1 . . . . . . . . 4 1 . . . . . Spaces Dug 22 | . . 18 . . 1 . . . . . . . . . 3 . . Terrain Destroyed 222 | . . 139 . 8 15 3 . 1 . . . . 1 4 10 37 4 Melee . | . . . . . . . . . . . . . . . . . . Projectile 58 | . . 2 . 8 15 3 . 1 . . . . 1 4 10 10 4 AOE 164 | . . 137 . . . . . . . . . . . . . 27 . Terrain Rammed . | . . . . . . . . . . . . . . . . . . Walls Destroyed . | . . . . . . . . . . . . . . . . . . Machines Disabled . | . . . . . . . . . . . . . . . . . . Actions | -11 -10 -10 -10 -9 -8 -7 -6 -5 -5 -5 -5 -5 -5 -4 -4 -4 -4 --------- Run | Yrd Mat Min Exi Min Mat Fac Fac Fac Was Fac Upp Upp War Pro Fac Was Fac Total 9216 | 71 215 737 298 104 555 280 982 716 245 481 489 319 1469 418 874 662 301 Wait 1200 | . 5 59 23 55 106 24 158 161 39 17 45 15 248 40 91 86 28 Move 7313 | 59 159 628 267 33 371 212 743 460 203 457 433 294 1167 363 706 520 238 Hop 9 | . . . . . . . 3 . . 4 . . . . 2 . . Pick Up 48 | 6 5 5 3 1 12 2 2 1 1 . . . 6 . 1 2 1 Fast Attach 70 | . . 1 . . . 5 11 13 . 2 4 1 12 1 9 9 2 Attach 53 | 6 3 3 1 3 7 2 8 3 . . 1 . 8 . . 6 2 Detach 23 | . . . 2 . 1 . 6 2 . . 1 . 4 . 1 5 1 Swap 10 | . . 2 . . 5 . 1 . . . . 1 . . 1 . . Drop 58 | . 1 1 2 . 4 3 4 3 2 1 . 1 15 1 8 7 5 Fire 385 | . 42 38 . 12 49 32 39 50 . . . 5 9 13 45 27 24 Melee 7 | . . . . . . . . . . . 5 2 . . . . . Ram 7 | . . . . . . . 7 . . . . . . . . . . Kick 18 | . . . . . . . . 8 . . . . . . 10 . . Crush . | . . . . . . . . . . . . . . . . . . Escape Stasis 15 | . . . . . . . . 15 . . . . . . . . . Rewire . | . . . . . . . . . . . . . . . . . . Trap . | . . . . . . . . . . . . . . . . . . Miscellaneous . | . . . . . . . . . . . . . . . . . . Route ------- -11/Scrapyard -10/Materials -10/Mines (discovered 4 exits: *Mat x2 / *Exi / [*Sub]) -10/Exiles -9/Mines -8/Materials -7/Factory -6/Factory -5/Factory -5/Waste -5/Factory -5/Upper Caves -5/Upper Caves -5/Warlord -4/Proximity Caves -4/Factory -4/Waste -4/Factory History --------- Turn | Location | Event 5 | -11/Scrapyard | Discovered new exit (range 15) 68 | -11/Scrapyard | Entered Materials 299 | -10/Materials | Discovered new exit (range 12) 307 | -10/Materials | Build established: Mutant 356 | -10/Materials | Identified exit to Mines 382 | -10/Materials | Entered Mines 383 | -10/Mines | Assembled infested the area 388 | -10/Mines | Assisted by a Guerilla fighting off Assembled 410 | -10/Mines | Received a Rocket Launcher from a helpful Derelict 737 | -10/Mines | Discovered new exit (range 15) 791 | -10/Mines | Found the Drone Emporium 794 | -10/Mines | Learned Materials stockpile data 796 | -10/Mines | Found Prototype Device 798 | -10/Mines | Identified Sensor Drone Bay 816 | -10/Mines | Discovered new exit (range 13) 899 | -10/Mines | Identified exit to Materials 1044 | -10/Mines | Core integrity fell below 50% 1110 | -10/Mines | Learned location of Storage (-9) 1167 | -10/Mines | A weapon hastily lodged in a ceiling crevice suddenly fell to the ground 1360 | -10/Mines | Discovered exit to Materials (range 3) 1387 | -10/Mines | Deemed a non-threat by the Exiles lab entrance 1387 | -10/Mines | Discovered new exit (range 5) 1405 | -10/Mines | Identified exit to Exiles 1410 | -10/Mines | Entered Exiles 1410 | -10/Exiles | Accompanied by 1 ally 1441 | -10/Exiles | Met 8R-AWN 1499 | -10/Exiles | Met EX-HEX 1548 | -10/Exiles | Met EX-BIN 1565 | -10/Exiles | Aligned with FarCom system 1566 | -10/Exiles | Given EX-Vault access code 1594 | -10/Exiles | Opened EX-Vault 1601 | -10/Exiles | Found Field Lobotomy Kit 1611 | -10/Exiles | Found Potential Leg 1613 | -10/Exiles | Found Potential Leg 1639 | -10/Exiles | Warned to stay clear of 0b10 Research branches 1677 | -10/Exiles | Met EX-DEC 1746 | -10/Exiles | Discovered new exit (range 12) 1760 | -10/Exiles | Stole two prototypes: Potential Leg, Field Lobotomy Kit 1760 | -10/Exiles | Entered Mines 1760 | -9/Mines | Accompanied by 1 ally 1834 | -9/Mines | Discovered new exit (range 6) 1887 | -9/Mines | Identified exit to Materials 1893 | -9/Mines | Entered Materials 1893 | -8/Materials | Accompanied by 1 ally 1893 | -8/Materials | Evolved 4 slots: Propulsion x1, Utility x2, Weapon x1 2433 | -8/Materials | Build established: Skirmisher 2561 | -8/Materials | Discovered new exit (range 8) 2704 | -8/Materials | Identified exit to Factory 2705 | -8/Materials | Entered Factory 2705 | -7/Factory | Evolved 2 slots: Power x1, Utility x1 2707 | -7/Factory | FarCom data flow suspended 2741 | -7/Factory | Build established: Scavenger-Skirmisher 2955 | -7/Factory | Discovered new exit (range 10) 2970 | -7/Factory | Garrison activated, responded to threat 3084 | -7/Factory | Identified exit to Factory 3085 | -7/Factory | Entered another Factory area 3085 | -6/Factory | Evolved 2 slots: Propulsion x1, Utility x1 3111 | -6/Factory | Lost 8 parts (1p2n1u4w) 3327 | -6/Factory | Build established: Mutant 3522 | -6/Factory | Core integrity fell below 50% 3525 | -6/Factory | Spotted B-75 Beast 3543 | -6/Factory | Garrison activated, responded to threat 3550 | -6/Factory | Garrison activated, responded to threat 3587 | -6/Factory | Lost 4 parts (2n2w) 3603 | -6/Factory | Allied Derelicts emerged from ambush trap array 3653 | -6/Factory | Core integrity fell below 20% 3927 | -6/Factory | Lost 3 parts (1p2n) 3949 | -6/Factory | Discovered new exit (range 8) 3954 | -6/Factory | Identified exit to Factory 4005 | -6/Factory | Entered another Factory area 4005 | -5/Factory | Evolved 2 slots: Propulsion x2 4128 | -5/Factory | Fabricated Mic. Fission Core (x2) 4270 | -5/Factory | Lost 4 parts (2n1u1w) 4573 | -5/Factory | Discovered new exit (range 19) 4612 | -5/Factory | Manually triggered Chute Trap 4612 | -5/Factory | Sucked down chute 4612 | -5/Factory | Entered Waste 4614 | -5/Waste | Spotted C-40 Crusher 4619 | -5/Waste | Spotted C-40 Crusher 4627 | -5/Waste | EMP discharged 4639 | -5/Waste | Spotted C-40 Crusher 4657 | -5/Waste | Spotted C-40 Crusher 4667 | -5/Waste | Spotted C-40 Crusher 4695 | -5/Waste | Spotted C-40 Crusher 4721 | -5/Waste | Discovered new exit (range 21) 4727 | -5/Waste | EMP discharged 4727 | -5/Waste | System corruption reached 10% 4728 | -5/Waste | Identified exit to Factory 4729 | -5/Waste | Entered Factory 4916 | -5/Factory | Discovered new exit (range 9) 4921 | -5/Factory | Identified exit to Upper Caves 4921 | -5/Factory | Entered Upper Caves 5157 | -5/Upper Caves | Learned location of 1 exit from Factory 5195 | -5/Upper Caves | Discovered new exit (range 13) 5199 | -5/Upper Caves | Learned Factory terminal intel 5230 | -5/Upper Caves | Core integrity fell below 50% 5231 | -5/Upper Caves | Identified exit to Upper Caves 5231 | -5/Upper Caves | Entered another Upper Caves area 5235 | -5/Upper Caves | Attracted the attention of an 0b10 checkpoint 5367 | -5/Upper Caves | Discovered new exit (range 5) 5369 | -5/Upper Caves | Identified exit to Warlord 5369 | -5/Upper Caves | Entered Warlord 5374 | -5/Warlord | Core integrity fell below 20% 5382 | -5/Warlord | System corruption cleaned by Quarantine Array 5424 | -5/Warlord | Found Prototype Device 5424 | -5/Warlord | Identified Minesniffer Drone Bay 5532 | -5/Warlord | Visited the Vortex Lab 5533 | -5/Warlord | Found Prototype Energy Gun 5533 | -5/Warlord | Identified Vortex Shotgun 5537 | -5/Warlord | Found Prototype Energy Cannon 5537 | -5/Warlord | Identified Vortex Driver 5553 | -5/Warlord | Warlord's base attacked by MAIN.C 5621 | -5/Warlord | Met Warlord 5903 | -5/Warlord | Warlord forces counterattacked 5968 | -5/Warlord | Found Prototype Processor 5968 | -5/Warlord | Identified Exp. Targeting Computer 5972 | -5/Warlord | Found Prototype Reactor 5972 | -5/Warlord | Identified Vortex Chain Reactor 6228 | -5/Warlord | Warlord base infiltrated, sounded retreat 6229 | -5/Warlord | Enhanced Grunt warped into view 6229 | -5/Warlord | Enhanced Grunt warped into view 6229 | -5/Warlord | Enhanced Grunt warped into view 6229 | -5/Warlord | Enhanced Demolisher warped into view 6229 | -5/Warlord | Enhanced Demolisher warped into view 6229 | -5/Warlord | Enhanced Demolisher warped into view 6436 | -5/Warlord | Found Vortex Driver 6494 | -5/Warlord | Found Prototype Ballistic Cannon 6494 | -5/Warlord | Identified Hvy. Autocannon 6510 | -5/Warlord | Spotted Executioner 6532 | -5/Warlord | Spotted Striker 6607 | -5/Warlord | Found Prototype Processor 6607 | -5/Warlord | Identified Exp. Melee Analysis Suite 6611 | -5/Warlord | Discovered new exit (range 14) 6621 | -5/Warlord | Lost 3 allies 6653 | -5/Warlord | Spotted Striker 6653 | -5/Warlord | Entered Proximity Caves 6693 | -4/Proximity Caves | Learned location of Quarantine (-2) 6756 | -4/Proximity Caves | Spotter reported a threat 6806 | -4/Proximity Caves | Found Alien Artifact 6806 | -4/Proximity Caves | Identified Dimensional Node Initializer 6806 | -4/Proximity Caves | Initialized slip node 6857 | -4/Proximity Caves | Spotter reported a threat 6986 | -4/Proximity Caves | Attracted the attention of an 0b10 checkpoint 7056 | -4/Proximity Caves | Discovered new exit (range 8) 7063 | -4/Proximity Caves | Identified exit to Factory 7066 | -4/Proximity Caves | Entered Factory 7066 | -4/Factory | Accompanied by 1 ally 7066 | -4/Factory | Evolved 2 slots: Utility x2 7067 | -4/Factory | Identified exit to Research 7068 | -4/Factory | Loaded intel: 28 terminal locations 7316 | -4/Factory | Search patrols dispatched 7459 | -4/Factory | Build established: Gunner 7836 | -4/Factory | Lost 3 parts (1n1u1w) 7858 | -4/Factory | Spotted B-86 Titan 7897 | -4/Factory | Core integrity fell below 50% 7904 | -4/Factory | Manually triggered Chute Trap 7904 | -4/Factory | Sucked down chute 7904 | -4/Factory | Entered Waste 7911 | -4/Waste | Spotted C-40 Crusher 7911 | -4/Waste | Spotted C-40 Crusher 7921 | -4/Waste | Destroyed C-40 Crusher 7925 | -4/Waste | Spotted C-40 Crusher 7928 | -4/Waste | Destroyed C-40 Crusher 7934 | -4/Waste | Lost 5 parts (2n1u2w) 7991 | -4/Waste | Spotted C-40 Crusher 7998 | -4/Waste | Spotted C-40 Crusher 8011 | -4/Waste | Spotted C-40 Crusher 8023 | -4/Waste | Found Prototype Processor 8023 | -4/Waste | Identified Spectral Analyzer 8046 | -4/Waste | Build established: Mutant 8047 | -4/Waste | Discovered new exit (range 10) 8061 | -4/Waste | Destroyed C-40 Crusher 8082 | -4/Waste | Destroyed C-40 Crusher 8090 | -4/Waste | Destroyed C-40 Crusher 8153 | -4/Waste | Warlord forces began an assault 8164 | -4/Waste | Allies destroyed C-40 Crusher 8476 | -4/Waste | Entered Factory 8476 | -4/Factory | Accompanied by 18 allies 8504 | -4/Factory | Build established: Gunner 8560 | -4/Factory | Found Quantum Capacitor 8654 | -4/Factory | Lost 8 allies 8738 | -4/Factory | Lost 4 allies 8843 | -4/Factory | Core integrity fell below 20% 8889 | -4/Factory | Lost 5 allies 8893 | -4/Factory | Build established: Mutant 8893 | -4/Factory | Destroyed by G-67 Veteran with Plasma Rifle Last Messages --------------- Armor Integrity Analyzer temporarily disabled. Critical hit (Burn: +50). Armor Integrity Analyzer destroyed. Backup Propulsion III destroyed. R-10 Processor collects Neutrino Core. R-10 Processor collects Plasma Rifle. U-05 Engineer builds a Wall. Dropped Rnf. Quantum Reactor. System corrupted: Component data lost. 8F-0US(m) destroyed. U-05 Engineer builds a Wall. K-01 Serf cleans the Terminal. Backup Propulsion III destroyed. Penetrated by Slug. Dropped Quantum Capacitor. G-67 Veteran destroyed. Slug penetrates Door. ALERT: Potential suspicious activity detected, Programmers report to Factory Zone 2Z. System corrupted: Heat flow error (+138). Map ----- +----------------------------------------------------+ | ?????????????????????????????????????????????????? | | ?????????????????????????????????????????????????? | | ?????????????????????????????????????????????????? | | ?????????????????????????????????????????????????? | | ?????????????????????????????????????????????????? | | ?????????????????????????????????????????????????? | | ?????????????????????????????????????????????????? | | ?????????????????????????????????????????????????? | | ?????????????????????????????????????????????????? | | ?????????????????????????????????????????????????? | | ????????????????????????? ??????????????????????? | | ?????????????????????? ""g ??????????????????????? | | ?????????????????????? ??????????????????????? | | ?????????????????????? ###???????????????????? | | ?????????????????????? #???????????????????? | | ?????????????????????? g #???????????????????? | | ?????????????????????? #???????????????????? | | ??????????????????????"" A #???????????????????? | | ????????????????????"""" #???????????????????? | | ????????????????????"""" #???????????????????? | | ????????????????????""""kg #####+#####?????????? | | ????????????????# """" uk H???????? | | ????????????????# """" g g ????????? | | ????????????????# """" g ???????? | | ????????????????# ???????? | | ????????????????# @ k ???????? | | ?????????????????##########/#######??????????????? | | ?????????????????# ! #??????????????????? | | ?????????????????# #??????????????????? | | ?????????????????# #??????????????????? | | ?????????????????# #??????????????????? | | ?????????????????# #??????????????????? | | ?????????????????# #??????????????????? | | ?################# #??????????????????? | | ?+ + #??????????????????? | | ???#### ####### #??????????????????? | | ??????# # * # #??????????????????? | | ??????# + # ! #??????????????????? | | ??????# # # #??????????????????? | | ??????#+## # """ ##############??????????????????? | | ?????????# #?"R #???????????????????????????????? | | ?????????# #?""" #???????????????????????????????? | | ?????????# #?? #???????????????????????????????? | | ?????????# #??###????????????????????????????????? | | ?????????# #?????????????????????????????????????? | | ?????????# #?????????????????????????????????????? | | ???" ????# #?????????????????????????????????????? | | ???" ""??# #?????????????????????????????????????? | | """ """ # #?????????????????????????????????????? | | / #?????????????????????????????????????? | +----------------------------------------------------+ Best States ------------- Heat Dissipation 71 Energy Generation 55 Energy Capacity 700 Matter Stores 418 Matter Capacity 450 Sight Range 24 Robot Scan Range 16 Terrain Scan Density 10 Armor Coverage 150 Resistance: EM 15 Weapon Cycling 15 Evasion (%) 66 Targeting Accuracy 12 Melee Accuracy 12 Armor Integrity Analysis 30 Recoil Reduction 2 Authchip Count 2 Item Schematics ----------------- None Robot Schematics ------------------ None Fabricated ------------ Mic. Fission Core | x2 | -5/Factory | Preloaded Repaired ---------- Nothing Studied --------- None Alien Tech Used ----------------- Dimensional Node Initializer Achievements -------------- None Challenges ------------ None Game ------ Seed StormPartitionUnit Manual? 0 Play Time 01:26:10 Cumulative 283.1 hours Start 2026.05.01 @ 20:40:33 End 2026.05.02 @ 12:59:03 Sessions 1 Manual Loads 0 Difficulty Rogue Special Mode None Game No. 741 Rogue 739 Adventurer 2 Explorer 0 Win Type - Total 0 Types 0/0/0/0/0/0/0/0/0/0 Lore% 68 Gallery% 64 Achievement% 45 Wizard Run 0 Options --------- Layout 2 ASCII 0 Keyboard 0 Movement Mouse Keybinds 0 Fullscreen 1 Font 24/Smallcaps Map View 50x44 Zoom Use 0% Tactical HUD 0 Map Filters NONE Filters NONE Steam 1 RUN: a0f27f67-b372-449b-bd8b-0a16c529bf3d